fUSD/lending_fUSD_20241123
["ID","MTS","AMOUNT","RATE_DAILY","PERIOD"]
[343105924,1732362134726,270.1767,0.00039888,7]
[343105925,1732362179269,7341.0,0.00052792,120]
[343105926,1732362212498,327.35906695,0.00052792,120]
[343105927,1732362220795,327.35906695,0.00038,120]
[343105928,1732362225159,246.93477544,0.00052792,120]
[343105929,1732362229142,327.35906695,0.0004,120]
[343105930,1732362233459,246.93477544,0.00038,120]
[343105931,1732362237368,23913.0,0.00041,2]
[343105932,1732362237448,654.71813389,0.00043,120]
[343105933,1732362241781,246.93477544,0.0004,120]
[343105934,1732362250093,493.86955088,0.00043,120]
[343105935,1732362303765,150.0,0.00034548,10]
[343105936,1732362333275,163.33,0.00039958,30]
[343105937,1732362350396,207.48680332,0.00041096,2]
[343105938,1732362429696,183.0,0.000235,2]
[343105939,1732362439104,-163.63,0.00043665,2]
[343105940,1732362439128,-166.68314278,0.000458,2]
[343105941,1732362439151,-301.94412056,0.000459,2]
[343105942,1732362439173,-818.39766736,0.00046,120]
[343105943,1732362439195,-617.33693861,0.00046,120]
[343105944,1732362439218,-942.55,0.00047928,2]
[343105945,1732362439240,-818.39766735,0.00048,120]
[343105946,1732362439261,-617.33693861,0.00048,120]
[343105947,1732362439281,-923.718752,0.00048841,2]
[343105948,1732362439308,-157.17,0.00049087,2]
[343105949,1732362439333,-151.0,0.00049562,120]
[343105950,1732362439356,-550.0,0.00049845,5]
[343105951,1732362439377,-2868.24,0.00049846,2]
[343105952,1732362439398,-687.58748254,0.00049846,2]
[343105953,1732362449110,-1217.74251746,0.00049846,2]
[343105954,1732362449132,-150.99,0.00049846,30]
[343105955,1732362449154,-500.0,0.00049846,2]
[343105956,1732362449174,-735.10625693,0.0004992,2]
[343105957,1732362551102,-250.0,0.00049866,120]
[343105958,1732362551123,-4615.98374307,0.0004992,2]
[343105959,1732362551146,-999.99,0.0004992,10]
[343105960,1732362551167,-1000.0,0.00049948,2]
[343105961,1732362551188,-550.0,0.00049999,15]
[343105962,1732362551212,-647.35924093,0.0005,60]
[343105976,1732362587147,100000.0,0.00052792,2]
[343105977,1732362590707,100000.0,0.00052792,3]
[343105978,1732362592289,153.62,0.00041096,2]
[343105979,1732362592495,153.62,0.00047489,2]
[343105980,1732362594722,100000.0,0.00052792,4]
[343105981,1732362598166,100000.0,0.00052792,5]
[343105982,1732362604029,203.4715,0.0004303,2]
[343105987,1732362629635,824.21413408,0.00052792,120]
[343105990,1732362631717,-203.4715,0.00048391,120]
[343105991,1732362631731,-500.0,0.0004984,2]
[343105992,1732362631744,-55.52717757,0.00049972,3]
[343105994,1732362631820,177.13,0.00041096,2]
[343105995,1732362631835,-272.64586201,0.00049972,3]
[343105996,1732362631910,-94.24696042,0.00049972,3]
[343105997,1732362631920,-2500.0,0.0005,40]
[343105998,1732362631931,-4538.0947949,0.0005,60]
[343105999,1732362631944,-356.73821317,0.0005,60]
[343106000,1732362631955,-1000.0,0.00050058,120]
[343106001,1732362631965,-250.0,0.0005011,120]
[343106002,1732362631976,-152.76,0.00050124,2]
[343106003,1732362631985,-4130.26617279,0.00050188,2]
[343106004,1732362632056,-436.88283668,0.00050188,2]
[343106005,1732362632107,-7362.975,0.00050188,2]
[343106055,1732362637920,-696.72874395,0.00050188,2]
[343106056,1732362637944,-9359.08633815,0.00050188,2]
[343106057,1732362637956,-8656.12090843,0.00050188,2]
[343106058,1732362637966,-942.55,0.00050192,2]
[343106059,1732362637975,-162.16,0.00050205,2]
[343106060,1732362638176,-334.13,0.00050205,30]
[343106061,1732362638186,-326.02,0.00050205,2]
[343106062,1732362638195,-2669.12,0.00050338,4]
[343106063,1732362638204,-1621.72,0.00050338,2]
[343106064,1732362638214,-907.6,0.00050338,2]
[343106065,1732362638223,-6746.97,0.00050338,20]
[343106066,1732362638232,-4543.33,0.00050424,2]
[343106067,1732362638241,-167.35,0.00050475,2]
[343106068,1732362638250,-151.0,0.00050493,120]
[343106069,1732362638259,-949.47,0.000506,7]
[343106070,1732362638269,-177.13,0.00050685,2]
[343106071,1732362638279,-4232.18287227,0.00050771,60]
[343106072,1732362638290,-620.36712773,0.00050771,60]
[343106073,1732362638299,-500.0,0.000508,2]
[343106075,1732362638309,-1080.9691224,0.00050848,15]
[343106076,1732362638318,-535.89631097,0.00050848,15]
[343106078,1732362638327,-176.82420831,0.00050873,91]
[343106079,1732362638337,-242.427,0.00050873,91]
[343106080,1732362638346,-200.0,0.00050896,2]
[343106081,1732362638355,-322.59485154,0.000509,120]
[343106082,1732362638366,-4179.16063895,0.000509,120]
[343106083,1732362638377,-1420.17501198,0.000509,120]
[343106084,1732362638388,-6019.52991695,0.000509,120]
[343106085,1732362638400,-1555.464882,0.000509,120]
[343106086,1732362638421,-8355.9647276,0.000509,120]
[343106087,1732362638448,-2154.8307,0.000509,120]
[343106088,1732362638639,-12295.34772715,0.000509,120]
[343106092,1732362639756,-13453.35371692,0.000509,120]
[343106093,1732362639771,-1871.87788,0.000509,120]
[343106094,1732362639782,-1083.0,0.000509,120]
[343106095,1732362639794,-16030.46048966,0.000509,120]
[343106096,1732362639849,-133.43797637,0.000509,120]
[343106097,1732362639897,-2980.96,0.000509,120]
[343106098,1732362639908,-457.68099998,0.000509,120]
[343106105,1732362643854,-557.19309041,0.000509,120]
[343106108,1732362643988,-131.29906213,0.000509,120]
[343106134,1732362645949,-779.9139727,0.000509,120]
[343106135,1732362645960,-50681.1052767,0.000509,120]
[343106136,1732362645970,-393.46,0.00050948,120]
[343106137,1732362645979,-171.21,0.00050948,2]
[343106138,1732362645989,-500.0,0.00050987,2]
[343106139,1732362645998,-1701.97,0.00051075,2]
[343106140,1732362646007,-450.0,0.00051262,30]
[343106141,1732362646017,-12997.97390705,0.00051262,2]
[343106144,1732362731549,165.0,0.000232,2]
[343106145,1732362789661,-279.918,0.00050645,5]
[343106146,1732362789686,-500.0,0.000509,7]
[343106147,1732362789709,-150.0,0.00051261,15]
[343106148,1732362789731,-200.0,0.00051261,90]
[343106149,1732362789758,-10902.02609295,0.00051262,2]
[343106150,1732362789783,-3530.0,0.000513,120]
[343106151,1732362789803,-151.0,0.00051425,120]
[343106152,1732362789827,-47169.51,0.00051453,2]
[343106153,1732362789850,-150.1466688,0.00051473,2]
[343106154,1732362789874,-159.1514592,0.00051473,2]
[343106155,1732362789898,-158.68,0.0005175,2]
[343106156,1732362789923,-157.59,0.0005175,2]
[343106157,1732362790119,500.0,0.00050645,5]
[343106158,1732362790559,500.0,0.000509,7]
[343106159,1732362798107,-151.0,0.00052356,120]
[343106160,1732362798131,-2881.31281,0.0005236,60]
[343106161,1732362798156,-2881.31281,0.0005237,60]
[343106162,1732362798180,-2881.31282,0.000524,61]
[343106163,1732362798205,-2881.31281,0.0005244,61]
[343106164,1732362798228,-942.55,0.00052456,2]
[343106165,1732362798252,-2881.31282,0.0005248,61]
[343106166,1732362798274,-2881.31281,0.0005252,61]
[343106167,1732362798296,-1378.63452119,0.0005275,7]
[343106168,1732362798319,-31713.0,0.000528,120]
[343106169,1732362798342,-200.0,0.00052804,15]
[343106170,1732362798366,-1500.0,0.000529,2]
[343106171,1732362798389,-159.1498624,0.00052943,2]
[343106172,1732362798411,-159.1466688,0.00052943,2]
[343106173,1732362798434,-159.1514592,0.00052943,2]
[343106174,1732362798455,-157.1614472,0.00052943,2]
[343106175,1732362798478,-159.145072,0.00052943,2]
[343106176,1732362798500,-500.0,0.00052943,2]
[343106177,1732362798523,-857.5947,0.00053139,30]
[343106178,1732362798546,-151.0,0.00053288,120]
[343106179,1732362798568,-219.46,0.00053351,2]
[343106180,1732362798591,-505.59533923,0.00053491,2]
[343106181,1732362798613,-150.49,0.00053538,2]
[343106182,1732362798637,-180.96,0.00053824,120]
[343106183,1732362798660,-3207.23,0.00053845,2]
[343106184,1732362798689,-535.89631089,0.00053854,15]
[343106185,1732362798714,-248.0,0.00053879,2]
[343106186,1732362798741,-153.62,0.00053881,120]
[343106187,1732362798764,-430.2437132,0.00054,2]
[343106188,1732362798788,-151.0,0.00054219,120]
[343106189,1732362798810,-159.1498624,0.0005448,2]
[343106190,1732362798833,-942.55,0.0005472,2]
[343106191,1732362798855,-166.1,0.00054784,2]
[343106192,1732362798880,-150.0,0.00054784,2]
[343106193,1732362798902,-1852.42,0.00054784,120]
[343106194,1732362798925,-500.0,0.00054795,120]
[343106195,1732362798949,-500.0,0.00054795,120]
[343106196,1732362798971,-500.0,0.00054795,120]
[343106197,1732362798995,-679.0,0.00054795,120]
[343106198,1732362799018,-250.0,0.00054799,120]
[343106199,1732362799041,-2751.0,0.00054813,120]
[343106200,1732362799064,-978.99,0.00054905,30]
[343106201,1732362799089,-434.3,0.00054955,120]
[343106202,1732362799111,-500.0,0.00055,30]
[343106203,1732362806243,500.0,0.00054955,73]
[343106204,1732362816579,10000.0,0.00052792,120]
[343106205,1732362820503,-504.78216576,0.00055075,7]
[343106206,1732362820526,-151.0,0.00055151,120]
[343106207,1732362820548,-23900.0,0.00055814,2]
[343106208,1732362820575,-500.0,0.00055865,2]
[343106209,1732362820597,-972.87221016,0.00055982,15]
[343106210,1732362820618,-26073.90756662,0.00056,120]
[343106211,1732362842871,100000.0,0.00052792,2]
[343106212,1732362845455,152.604,0.00040728,2]
[343106213,1732362846859,100000.0,0.00052792,3]
[343106214,1732362850432,100000.0,0.00052792,4]
[343106215,1732362854174,100000.0,0.00052792,5]
[343106216,1732363097007,151.0,0.0003,120]
[343106217,1732363097885,151.0,0.00031397,120]
[343106218,1732363098449,151.0,0.00032795,120]
[343106219,1732363098840,190.75425,0.00041773,2]
[343106220,1732363099026,151.0,0.00034192,120]
[343106221,1732363099587,151.0,0.00035589,120]
[343106222,1732363100145,151.0,0.00036986,120]
[343106223,1732363100734,151.0,0.00038384,120]
[343106224,1732363101295,151.0,0.00039781,120]
[343106225,1732363101852,151.0,0.00041178,120]
[343106226,1732363102408,151.0,0.00042575,120]
[343106227,1732363103012,151.0,0.00043973,120]
[343106228,1732363119253,219.82327957,0.00052792,120]
[343106229,1732363127573,219.82327957,0.00038,120]
[343106230,1732363129936,1234.67387722,0.00052792,120]
[343106231,1732363135899,219.82327957,0.0004,120]
[343106232,1732363144212,439.64655913,0.00043,120]
[343106233,1732363164645,165.48,0.00030922,2]
[343106234,1732363167889,-185.17,0.0004436,30]
[343106235,1732363167911,-890.17787013,0.0004517,2]
[343106236,1732363167932,-214.1528328,0.0004527,2]
[343106237,1732363167955,-151.0,0.0004537,120]
[343106238,1732363167981,-214.1528328,0.00045397,2]
[343106239,1732363168003,-214.1528328,0.00045524,2]
[343106240,1732363168025,-214.1528328,0.00045651,2]
[343106241,1732363168046,-549.55819892,0.00046,120]
[343106242,1732363168067,-151.0,0.00046767,120]
[343106243,1732363168088,-651.268,0.00047941,82]
[343106244,1732363168109,-165.3,0.00047941,2]
[343106245,1732363168130,-161.061,0.00047941,82]
[343106246,1732363168151,-549.5581989,0.00048,120]
[343106247,1732363168173,-151.0,0.00048164,120]
[343106248,1732363168194,-651.19387949,0.00049462,2]
[343106249,1732363168215,-151.0,0.00049562,120]
[343106250,1732363169889,214.1528328,0.00045778,2]
[343106251,1732363170236,890.17787012,0.0004522,2]
[343106252,1732363172859,216.59,0.0004297,2]
[343106253,1732363173080,216.59,0.00048343,120]
[343106254,1732363174956,214.1528328,0.00045905,2]
[343106255,1732363175242,890.17787012,0.0004527,2]
[343106256,1732363179903,214.1528328,0.00046032,2]
[343106257,1732363180236,500.0,0.00046032,2]
[343106258,1732363185357,214.1528328,0.00046159,2]
[343106259,1732363189911,214.1528328,0.00046286,2]
[343106260,1732363194895,214.1528328,0.00046413,2]
[343106261,1732363200051,214.1528328,0.0004654,2]
[343106262,1732363205009,214.1528328,0.00046667,2]
[343106263,1732363239640,150.0,0.00027,120]
[343106269,1732363275644,-1500.0,0.000502,2]
[343106270,1732363275665,-325.59693975,0.00050859,2]
[343106271,1732363275687,-151.0,0.00050959,120]
[343106272,1732363275709,-166.7839895,0.000512,2]
[343106273,1732363275729,-4384.0,0.000513,120]
[343106274,1732363275987,-325.59693974,0.00051644,2]
[343106275,1732363276011,-1000.0,0.00051744,120]
[343106276,1732363276034,-935.700523,0.00051994,5]
[343106277,1732363276059,-151.0,0.00052356,120]
[343106278,1732363276082,-150.0,0.00053184,2]
[343106279,1732363276107,-216.59,0.00053716,120]
[343106280,1732363276129,-151.0,0.00053753,120]
[343106281,1732363276152,-250.0,0.00053898,120]
[343106282,1732363276175,-189.37,0.00054286,120]
[343106283,1732363276197,-700.0,0.00054294,15]
[343106284,1732363276218,-638.89,0.00054295,2]
[343106285,1732363276240,-166.7839895,0.00054573,2]
[343106286,1732363276261,-6438.0,0.00054606,30]
[343106287,1732363276282,-159.169024,0.00054673,2]
[343106288,1732363276303,-343.50403164,0.00054673,10]
[343106289,1732363276328,-159.1514592,0.00054673,2]
[343106290,1732363276349,-500.0,0.00054673,2]
[343106291,1732363276370,-500.0,0.00054673,10]
[343106292,1732363276391,-1000.0,0.00054689,9]
[343106293,1732363276413,-1049.0,0.00054689,9]
[343106294,1732363276434,-20398.86310367,0.0005469,2]
[343106295,1732363302920,33800.0,0.00048,30]
[343106296,1732363351000,155.63,0.00041096,2]
[343106297,1732363351414,155.63,0.00046736,2]
[343106317,1732363447645,179.411957,0.00052775,120]
[343106321,1732363595875,163.63,0.00042756,2]
[343106322,1732363600431,177.13,0.00041096,2]
[343106323,1732363645016,403.53343899,0.00052775,120]
[343106324,1732363727957,250.0,0.00031,2]
[343106325,1732363728998,300.0,0.00033,2]
[343106326,1732363730083,350.0,0.00035,2]
[343106327,1732363731160,400.0,0.00037,2]
[343106328,1732363732243,450.0,0.00039,2]
[343106329,1732363733315,500.0,0.00041,2]
[343106330,1732363734407,550.0,0.00043,2]
[343106354,1732363735500,600.0,0.00045,2]
[343106591,1732363741940,246.93477544,0.00052775,120]
[343106902,1732363750351,246.93477544,0.00038,120]
[343107127,1732363756186,8500.0,0.00032232,6]
[343107223,1732363758820,246.93477544,0.0004,120]
[343107514,1732363767134,493.86955088,0.00043,120]
[343107769,1732363774580,8500.0,0.00032223,6]
[343107800,1732363775458,617.3369386,0.00046,120]
[343107940,1732363779580,188.93753658,0.00052775,120]
[343108101,1732363784035,617.33693861,0.00048,120]
[343108215,1732363787887,188.93753658,0.00038,120]
[343108450,1732363794605,8500.0,0.00032214,6]
[343108513,1732363796275,188.93753658,0.0004,120]
[343108775,1732363804565,377.87507317,0.00043,120]
[343109026,1732363813157,472.34384146,0.00046,120]
[343109255,1732363821466,472.34384146,0.00048,120]
[343109479,1732363831837,-6578.0,0.00050474,30]
[343109481,1732363831847,-177.13,0.00050685,2]
[343109482,1732363831856,-155.63,0.00052377,120]
[343109483,1732363831865,-186.91719324,0.00052511,4]
[343109484,1732363831875,-555.0,0.00052775,2]
[343109485,1732363831884,-243.98,0.00053128,2]
[343109487,1732363831893,-700.0,0.00053135,15]
[343109488,1732363831902,-4615.98,0.00053136,2]
[343109489,1732363831911,-250.0,0.00053201,120]
[343109490,1732363831921,-200.0,0.00053211,30]
[343109491,1732363831930,-2367.56,0.00053247,63]
[343109493,1732363831939,-166.81,0.00053273,2]
[343109494,1732363831949,-250.0,0.00053301,120]
[343109495,1732363831958,-927.61,0.00053329,120]
[343109496,1732363831968,-436.89,0.00053394,2]
[343109498,1732363831978,-150.99,0.00053394,30]
[343109499,1732363831988,-9029.26,0.00053394,30]
[343109500,1732363832001,-300.0,0.00053445,2]
[343109501,1732363832011,-161.01,0.00053453,120]
[343109502,1732363832023,-1069.9,0.00053463,2]
[343109504,1732363832034,-2204.8,0.00053463,2]
[343109505,1732363832047,-3471.73,0.00053463,2]
[343109506,1732363832056,-999.99,0.00053463,10]
[343109507,1732363832067,-299.99,0.00053463,120]
[343109509,1732363832076,-1000.0,0.00053489,11]
[343109510,1732363832086,-26681.3685896,0.0005349,2]
[343109511,1732363832097,-20000.0,0.000535,120]
[343109512,1732363832107,-459.2,0.00054222,2]
[343109513,1732363832118,-459.2,0.00054236,2]
[343109515,1732363832128,-459.2,0.0005425,2]
[343109516,1732363832138,-459.2,0.00054265,2]
[343109517,1732363832152,-459.2,0.00054279,2]
[343109518,1732363832162,-459.2,0.00054293,2]
[343109519,1732363832172,-459.2,0.00054307,2]
[343109521,1732363832182,-459.2,0.00054322,2]
[343109522,1732363832191,-459.2,0.00054336,2]
[343109523,1732363832201,-459.2,0.0005435,2]
[343109524,1732363832211,-459.2,0.00054365,2]
[343109525,1732363832220,-459.2,0.00054379,2]
[343109527,1732363832230,-485.27,0.00054389,7]
[343109528,1732363832240,-27502.08,0.00054389,7]
[343109529,1732363832250,-2362.61,0.00054389,7]
[343109530,1732363832260,-459.2,0.00054393,2]
[343109531,1732363832270,-459.2,0.00054407,2]
[343109533,1732363832280,-459.2,0.00054422,2]
[343109534,1732363832292,-459.2,0.00054436,2]
[343109535,1732363832303,-459.2,0.0005445,2]
[343109536,1732363832313,-459.2,0.00054464,2]
[343109538,1732363832324,-459.2,0.00054479,2]
[343109539,1732363832333,-459.2,0.00054493,2]
[343109540,1732363832343,-4413.93654826,0.000546,28]
[343109541,1732363832353,-1977.57333787,0.000546,15]
[343109542,1732363832363,-500.0,0.00054673,10]
[343109544,1732363832372,-500.0,0.00054673,2]
[343109545,1732363832382,-191.6,0.0005468,10]
[343109546,1732363832391,-775.7040693,0.0005469,30]
[343109547,1732363832400,-268.31,0.0005469,30]
[343109548,1732363832409,-5000.0,0.0005469,120]
[343109549,1732363832419,-5000.0,0.0005469,120]
[343109551,1732363832428,-5000.0,0.0005469,120]
[343109552,1732363832438,-5000.0,0.0005469,120]
[343109553,1732363832447,-223.59,0.0005469,30]
[343109554,1732363832456,-5000.0,0.0005469,120]
[343109555,1732363832466,-5000.0,0.0005469,120]
[343109557,1732363832475,-5000.0,0.0005469,120]
[343109558,1732363832485,-5000.0,0.0005469,120]
[343109559,1732363832494,-4133.471175,0.0005469,120]
[343109560,1732363832504,-186.33,0.0005469,30]
[343109561,1732363832513,-155.27,0.0005469,30]
[343109563,1732363832523,-776.38,0.0005469,30]
[343109564,1732363832532,-500.0,0.00054699,31]
[343109565,1732363832544,-500.0,0.00054699,31]
[343109566,1732363832553,-500.0,0.00054699,31]
[343109568,1732363832563,-222.55321013,0.00054699,31]
[343109569,1732363832573,-500.0,0.00054699,31]
[343109570,1732363832583,-255.49278673,0.00054699,31]
[343109571,1732363832593,-500.0,0.00054699,31]
[343109572,1732363832602,-500.0,0.00054699,31]
[343109574,1732363832612,-500.0,0.00054699,31]
[343109575,1732363832621,-500.0,0.00054699,31]
[343109576,1732363832631,-500.0,0.00054699,31]
[343109577,1732363832642,-250000.0,0.000547,2]
[343109579,1732363832652,-1687.41520345,0.000547,30]
[343109580,1732363832662,-747.92681649,0.00054735,11]
[343109581,1732363832671,-896.0,0.00054795,120]
[343109582,1732363832681,-500.0,0.00054795,120]
[343109583,1732363832690,-500.0,0.00054795,120]
[343109588,1732363832867,-359.17937413,0.00054909,2]
[343109589,1732363832877,-14229.91,0.00055,120]
[343109590,1732363832887,-150.5,0.00055009,120]
[343109592,1732363832897,-374.54679166,0.00055033,15]
[343109593,1732363832907,-555.0,0.0005515,120]
[343109594,1732363832918,-151.0,0.00055151,120]
[343109595,1732363832927,-1000.0,0.00055221,2]
[343109596,1732363832937,-500.0,0.00055273,7]
[343109598,1732363832947,-23900.0,0.00055285,2]
[343109599,1732363832957,-591.74,0.00055342,30]
[343109600,1732363832967,-515.85904234,0.00055561,27]
[343109601,1732363832978,-5549.79,0.00055612,2]
[343109603,1732363832987,-2868.24,0.00055661,2]
[343109604,1732363832998,-4720.6,0.00055661,4]
[343109605,1732363833010,-500.0,0.00055685,2]
[343109606,1732363833021,-500.0,0.00055714,120]
[343109607,1732363833031,-1069.9,0.00055727,2]
[343109609,1732363833044,-158.67,0.00055769,120]
[343109610,1732363833054,-500.0,0.00055821,7]
[343109611,1732363833064,-13271.3,0.00055969,2]
[343109612,1732363833074,-14112.76298508,0.00056,120]
[343109613,1732363833085,-2000.0,0.00056,15]
[343109615,1732363833097,-200.0,0.00056,15]
[343109616,1732363833108,-193.94558,0.00056,78]
[343109617,1732363833120,-843.973845,0.00056228,2]
[343109618,1732363833130,-950.1822024,0.00056266,2]
[343109620,1732363833139,-638.89,0.00056304,2]
[343109621,1732363833150,-193.94558,0.0005641,79]
[343109622,1732363833160,-151.0,0.00056548,120]
[343109623,1732363833170,-200.0,0.0005656,15]
[343109624,1732363833181,-164.54,0.00056572,2]
[343109626,1732363833191,-160.50536176,0.00056682,15]
[343109627,1732363833201,-157.17,0.00057078,120]
[343109628,1732363833211,-200.0,0.00057126,15]
[343109629,1732363833221,-1977.57333787,0.00057189,15]
[343109630,1732363833231,-162.36,0.00057275,2]
[343109632,1732363833241,-193.94558,0.0005766,85]
[343109633,1732363833251,-200.0,0.00057697,15]
[343109634,1732363833260,-4413.93654819,0.00057914,28]
[343109635,1732363833270,-151.0,0.00057945,120]
[343109637,1732363833280,-163.04960594,0.00057973,15]
[343109638,1732363833291,-153.87,0.0005799,120]
[343109639,1732363833302,-1069.9,0.00057991,2]
[343109640,1732363833312,-141524.59974906,0.00058,120]
[343109641,1732363833323,-178.03489,0.00058,120]
[343109643,1732363833333,-178.03489,0.00058,120]
[343109644,1732363833343,-151.0,0.00058,120]
[343109645,1732363833354,-151.0,0.00058,120]
[343109646,1732363833364,-151.0,0.00058,120]
[343109647,1732363833374,-162.347482,0.00058,120]
[343109649,1732363833384,-151.0,0.00058,120]
[343109650,1732363833394,-251.716587,0.00058,120]
[343109651,1732363833404,-251.716587,0.00058,120]
[343109652,1732363833414,-151.0,0.00058,120]
[343109653,1732363833424,-151.0,0.00058,120]
[343109655,1732363833434,-151.0,0.00058,120]
[343109656,1732363833444,-151.0,0.00058,120]
[343109657,1732363833454,-151.0,0.00058,7]
[343109658,1732363833464,-151.0,0.00058,120]
[343109659,1732363833474,-151.0,0.00058,120]
[343109661,1732363833484,-175.054695,0.00058,120]
[343109662,1732363833494,-151.0,0.00058,120]
[343109663,1732363833504,-151.0,0.00058,120]
[343109664,1732363833514,-155.63,0.00058018,120]
[343109665,1732363833524,-200.0,0.00058274,15]
[343109667,1732363833533,-638.89,0.00058313,2]
[343109668,1732363833544,-164.62229061,0.00058578,2]
[343109669,1732363833554,-1703.51529344,0.00058734,2]
[343109670,1732363833563,-185.40768306,0.00058797,40]
[343109671,1732363833573,-153.18327948,0.00058873,2]
[343109673,1732363833584,-97953.89031164,0.00058897,2]
[343109674,1732363833594,-151.0,0.00058897,120]
[343109675,1732363833604,-151.0,0.00058897,120]
[343109676,1732363833613,-151.0,0.00058897,120]
[343109677,1732363833623,-151.0,0.00058897,120]
[343109679,1732363833632,-151.0,0.00058897,120]
[343109680,1732363833642,-151.0,0.00058897,120]
[343109681,1732363833651,-151.0,0.00058897,120]
[343109682,1732363833661,-151.0,0.00058897,120]
[343109683,1732363833672,-178.03489,0.00058897,120]
[343109685,1732363833682,-178.03489,0.00058897,120]
[343109686,1732363833693,-151.0,0.00058897,120]
[343109687,1732363833704,-151.0,0.00058897,120]
[343109688,1732363833714,-251.716587,0.00058897,120]
[343109689,1732363833724,-251.716587,0.00058897,120]
[343109691,1732363833734,-151.0,0.00058897,120]
[343109692,1732363833743,-151.0,0.00058897,120]
[343109693,1732363833753,-151.0,0.00058897,120]
[343109694,1732363833763,-151.0,0.00058897,7]
[343109696,1732363833772,-151.0,0.00058897,120]
[343109697,1732363833782,-151.0,0.00058897,120]
[343109698,1732363833793,-193.94558,0.0005891,91]
[343109699,1732363833803,-500.0,0.00059,7]
[343109700,1732363833813,-216.59,0.0005909,120]
[343109702,1732363833822,-151.0,0.00059342,120]
[343109703,1732363833831,-742.0,0.000595,12]
[343109704,1732363833840,-150.5,0.00059662,120]
[343109705,1732363833849,-1977.57333787,0.00059778,15]
[343109706,1732363833858,-948.90100363,0.000598,120]
[343109708,1732363833867,-26857.35399187,0.000598,120]
[343109709,1732363833876,-927.61,0.00059996,120]
[343109710,1732363833885,-1000.0,0.0006,7]
[343109711,1732363833899,-394.0,0.0006,120]
[343109713,1732363833908,-193.94558,0.0006016,97]
[343109714,1732363833917,-1069.9,0.00060255,2]
[343109715,1732363833926,-153.62,0.00060274,120]
[343109716,1732363833935,-177.13,0.00060274,2]
[343109717,1732363833943,-1116.6029506,0.000603,120]
[343109718,1732363833952,-638.89,0.00060322,2]
[343109720,1732363833961,-433.65,0.00060489,60]
[343109721,1732363833970,-433.65,0.00060489,60]
[343109722,1732363833980,-764.99,0.00060489,60]
[343109723,1732363833989,-433.65,0.00060489,60]
[343109724,1732363834000,-764.99,0.00060489,60]
[343109726,1732363834010,-433.65,0.00060489,60]
[343109727,1732363834019,-763.25,0.00060489,60]
[343109728,1732363834028,-433.65,0.00060489,60]
[343109729,1732363834038,-433.65,0.00060489,60]
[343109731,1732363834049,-433.65,0.00060489,60]
[343109732,1732363834059,-433.65,0.00060489,60]
[343109733,1732363834070,-433.65,0.00060489,60]
[343109734,1732363834080,-814.33,0.00060489,60]
[343109735,1732363834090,-500.0,0.0006056,120]
[343109737,1732363834099,-153.82,0.00060735,2]
[343109738,1732363834109,-151.0,0.0006074,120]
[343109739,1732363834119,-150.0,0.00060767,2]